Cogmind - Beta 9.2 @@@ ROGUE MODE // 2019.11.15 @ 11:29:59 Player: Noxul Result: Self-destructed Performance ------------- Evolutions (1) 500 Regions Visited (2) 400 Robots Destroyed (13) 65 Value Destroyed (287) 287 Prototype IDs (0) 0 Alien Tech Used (0) 0 Bonus (0) 0 TOTAL SCORE: 1252 Bonus ------- None Cogmind --------- Core Integrity 363/400 Matter 300/300 Energy 265/265 System Corruption 1% Temperature Cool (0) Movement Rolling (100) Ox1 Location -9/Materials Parts ------- > --- POWER (1) -------- Improved Ion Engine > --- PROPULSION (2) --- Armored Wheel Armored Wheel > --- UTILITY (2) ------ Heat Sink Large Storage Unit > --- WEAPON (4) ------- Medium Laser Light Assault Rifle > --- INVENTORY (10) --- Improved Ion Engine Wheel Wheel Compact Wheel Compact Wheel Grenade Launcher Peak State ------------ > --- POWER ------------ Improved Ion Engine > --- PROPULSION ------- Armored Wheel Armored Wheel > --- UTILITY ---------- Large Storage Unit Hacking Suite > --- WEAPON ----------- Small Laser Small Laser Assault Rifle Light Assault Rifle > --- INVENTORY -------- Improved Ion Engine Wheel Wheel Compact Wheel Compact Wheel Medium Laser Grenade Launcher [Rating: 14] Favorites ----------- Power Improved Ion Engine Engine Improved Ion Engine Propulsion Armored Wheel Wheel Armored Wheel Utility Large Storage Unit Device Tractor Beam Storage Large Storage Unit Hackware Hacking Suite Weapon Light Assault Rifle Energy Gun Small Laser Ballistic Gun Light Assault Rifle Launcher Grenade Launcher Build | -11 -10 -9 ------- Run | Scr Mat Mat Slots Evolved 2 | . . 2 Power . | . . . Propulsion . | . . . Utility . | . . . Weapon 2 | . . 2 Parts Attached 19 | 6 8 5 Power 2 | 1 1 . Engine 2 | 1 1 . Core . | . . . Reactor . | . . . Propulsion 5 | 2 3 . Treads . | . . . Leg . | . . . Wheel 5 | 2 3 . Hover . | . . . Flight . | . . . Utility 5 | 1 2 2 Device 2 | . 1 1 Storage 2 | 1 1 . Processor . | . . . Hackware 1 | . . 1 Protection . | . . . Artifact . | . . . Weapon 7 | 2 2 3 Energy Gun 3 | . . 3 Energy Cannon . | . . . Ballistic Gun 3 | 2 1 . Ballistic Cannon . | . . . Launcher 1 | . 1 . Special Weapon . | . . . Impact Weapon . | . . . Slashing Weapon . | . . . Piercing Weapon . | . . . Special Melee Weapon . | . . . Unidentified Prototypes . | . . . Parts Lost 3 | . . 3 Power . | . . . Propulsion . | . . . Utility . | . . . Weapon 3 | . . 3 Highest Loss Streak 2 | . . 2 Average Slot Usage (%) 94 | . 92 96 Engine 12 | . 14 11 Wheel 25 | . 28 22 Device 7 | . 6 7 Storage 13 | . 14 11 Hackware 1 | . . 3 Energy Gun 7 | . . 19 Ballistic Gun 25 | . 27 21 Naked Turns . | . . . Heaviest Build 29 | 10 27 29 Greatest Support 32 | 26 32 24 Greatest Overweight (x) 1 | . 1 1 Average Overweight (x) . | . . 1 Largest Inventory Capacity 12 | 6 12 10 Average Capacity 9 | 5 9 10 Most Carried 9 | 4 9 8 Average Carried 5 | 2 5 6 Final Capacity 10 | 6 10 10 Final Carried 9 | 4 9 6 Class Distribution -------------------- 65% | Mutant 34% | Gunner Dominant Class ---------------- Mutant | -10/Materials Gunner | -9/Materials Resources | -11 -10 -9 ----------- Run | Scr Mat Mat Matter Collected 568 | 206 262 100 Remotely 207 | . 167 40 Salvage Created 415 | . 225 190 Parts 25 | . 14 11 Haulers Intercepted 1 | . 1 . Recyclers Shooed 1 | . 1 . Parts Field Recycled . | . . . Retrieved Matter . | . . . Parts Self-Destructed . | . . . Prevented . | . . . Kills | -11 -10 -9 ------- Run | Scr Mat Mat Combat Hostiles Destroyed 9 | . 5 4 Guns 6 | . 2 4 AOE 3 | . 3 . Classes Destroyed 7 | . 4 3 Hauler 1 | . 1 . Recycler 2 | . 2 . Operator 1 | . . 1 Swarmer 3 | . 3 . Grunt 4 | . 2 2 Brawler 1 | . . 1 Sentry 1 | . . 1 Best Kill Streak 4 | . 4 2 Combat Bots Only 3 | . 3 2 Max Kills in Single Turn 3 | . 3 1 Gunslinging . | . . . Exploded 2 | . 2 . Melee . | . . . Uniques/NPCs Destroyed . | . . . Combat | -11 -10 -9 -------- Run | Scr Mat Mat Damage Taken 462 | . 166 296 Core 37 | . . 37 Absorbed by Shields . | . . . Core Remaining (%) 100 | 100 100 . Volleys Fired 44 | . 29 15 Largest 4 | . 2 4 Hottest 130 | . 40 130 Shots Fired 114 | . 56 58 Gun 112 | . 54 58 Cannon . | . . . Launcher 2 | . 2 . Special . | . . . Kinetic 84 | . 54 30 Thermal 28 | . . 28 Explosive 2 | . 2 . Electromagnetic . | . . . Robot Hit Streak 11 | . 8 11 Robot Miss Streak 6 | . 5 6 Penetration Max . | . . . Secondary Targets 1 | . 1 . Max Gunslinging Chain 1 | . 1 . Shots Hit Robots 70 | . 34 36 Core Hits 26 | . 15 11 Critical Hits . | . . . Critical Kills . | . . . Critical Parts Destroyed . | . . . Melee Attacks . | . . . Impact . | . . . Slashing . | . . . Piercing . | . . . Sneak Attacks . | . . . Combat Hostiles . | . . . Follow-up Attacks . | . . . Damage Inflicted 852 | . 535 317 Guns 662 | . 345 317 Cannons . | . . . Explosions 190 | . 190 . Melee . | . . . Ramming . | . . . Kinetic 529 | . 345 184 Thermal 133 | . . 133 Explosive 190 | . 190 . Electromagnetic . | . . . Impact . | . . . Slashing . | . . . Piercing . | . . . Highest Corruption 1 | . . 1 Average Corruption 1 | . . 1 Corruption Purged . | . . . Overload Shots . | . . . Overflow Damage . | . . . Projectiles . | . . . Explosions . | . . . Melee . | . . . Knockbacks . | . . . Impact . | . . . Kinetic . | . . . Secondary . | . . . Self-Inflicted Damage 13 | . 13 . Shots 1 | . 1 . Rammed . | . . . Targets Rammed . | . . . Kicked . | . . . Crushed . | . . . Highest Temperature 217 | . 29 217 Average Temperature 70 | . 9 85 Received Heat Transfer 135 | . 72 63 Siege Activations . | . . . Robots Corrupted . | . . . Combat Hostiles . | . . . Parts Fried . | . . . Impact Corruptions . | . . . Robots Melted . | . . . Combat Hostiles . | . . . Parts Melted . | . . . Heat Transferred 312 | . . 312 Parts Sabotaged . | . . . Parts Stolen . | . . . Parts Stripped . | . . . Power Chain Reactions . | . . . Missiles Intercepted . | . . . Alert | -11 -10 -9 ------- Run | Scr Mat Mat Peak Influence 202 | . 173 202 Average Influence 107 | . 105 139 Maximum Alert Level 1 | . . 1 Low Security (%) 98 | 100 100 95 Level 1 1 | . . 4 Level 2 . | . . . Level 3 . | . . . Level 4 . | . . . Level 5 . | . . . High Security . | . . . Max Security . | . . . Squads Dispatched 3 | . 1 2 Investigation . | . . . Extermination . | . . . Reinforcement 3 | . 1 2 Assault . | . . . Garrison . | . . . Intercept . | . . . Construction Impeded . | . . . Haulers Reinforced . | . . . Stealth | -11 -10 -9 --------- Run | Scr Mat Mat Distress Signals 3 | . 1 2 Communications Jammed . | . . . Distress Signals . | . . . Times Spotted 20 | . 8 12 Peak Tracking Total 7 | . 3 7 Tactical Retreats . | . . . Traps | -11 -10 -9 ------- Run | Scr Mat Mat Traps Triggered 4 | . . 4 Indirectly . | . . . Trap Hack Attempts . | . . . Triggered . | . . . Disarmed . | . . . Reprogrammed . | . . . Reused . | . . . Traps Extracted . | . . . Installed . | . . . Triggered . | . . . Machines | -11 -10 -9 ---------- Run | Scr Mat Mat Machines Disabled 1 | . 1 . Max in Single Turn 1 | . 1 . Machines Sabotaged . | . . . Garrisons Compromised . | . . . Overloaded Fab Kills . | . . . Fab Network Shutdowns . | . . . Hacking | -11 -10 -9 --------- Run | Scr Mat Mat Machines Accessed 2 | . 1 1 Terminals 2 | . 1 1 Fabricators . | . . . Repair Stations . | . . . Recycling Units . | . . . Scanalyzers . | . . . Garrison Access . | . . . Total Hacks 2 | . 1 1 Successful 2 | . 1 1 Failed . | . . . Catastrophic . | . . . Database Lockouts . | . . . Manual 2 | . 1 1 Terminals 2 | . 1 1 Fabricators . | . . . Repair Stations . | . . . Recycling Units . | . . . Scanalyzers . | . . . Garrison Access . | . . . Terminal Hacks . | . . . Fabricator Hacks . | . . . Repair Station Hacks . | . . . Recycling Unit Hacks . | . . . Scanalyzer . | . . . Garrison Access Hacks . | . . . Unauthorized Hacks 4 | . 2 2 Terminals 2 | . 1 1 Track 1 | . . 1 Assimilate 1 | . 1 . Fabricators . | . . . Repair Stations . | . . . Recycling Units . | . . . Scanalyzers . | . . . Garrison Access . | . . . Data Cores Recovered . | . . . Used . | . . . Hacking Detections . | . . . Full Trace Events . | . . . Feedback Events . | . . . Feedback Blocked . | . . . Robot Schematics Acquired . | . . . Robots Built . | . . . Matter . | . . . Time . | . . . Total Robot Build Rating . | . . . Part Schematics Acquired . | . . . Parts Built . | . . . Matter . | . . . Time . | . . . Total Part Build Rating . | . . . Parts Repaired . | . . . Time . | . . . Parts Recycled . | . . . Recycled Matter . | . . . Retrieved Matter . | . . . Retrieved Components . | . . . Parts Scanalyzed . | . . . Part Schematics Acquired . | . . . Parts Damaged . | . . . Bothacking | -11 -10 -9 ------------ Run | Scr Mat Mat Used RIF Installer . | . . . Robots Hacked . | . . . Non-combat . | . . . Combat . | . . . Robot Hacks Applied . | . . . Relay Couplers Released . | . . . Robots Rewired . | . . . Allies Hacked . | . . . Hacks Repelled . | . . . Allies | -11 -10 -9 -------- Run | Scr Mat Mat Total Allies . | . . . Largest Group . | . . . Highest-Rated Group . | . . . Highest-Rated Ally . | . . . Total Orders . | . . . Ally Attacks . | . . . Total Damage . | . . . Kills . | . . . Allies Corrupted . | . . . Allies Melted . | . . . Intel | -11 -10 -9 ------- Run | Scr Mat Mat Robot Analysis Total . | . . . Derelict Logs Recovered . | . . . Drone Launches . | . . . Drone Recoveries . | . . . Exploration | -11 -10 -9 ------------- Run | Scr Mat Mat Turns Passed 586 | 53 334 199 Spaces Moved 387 | 48 235 104 Core 13 | 13 . . Treads . | . . . Legs . | . . . Wheels 374 | 35 235 104 Hover . | . . . Flight . | . . . Fastest Speed 50 | 50 90 100 Average Speed 94 | 79 95 100 Slowest Speed 100 | 90 100 100 Overloaded Moves . | . . . Propulsion Burnouts . | . . . Robots Hopped . | . . . Cave-ins Triggered . | . . . Exploration Rate (%) 23 | 3 52 16 Regions Visited 2 Branch Regions . Pre-discovered Areas . | . . . Known Exits Taken . | . . . Unknown Exits Taken 2 | 1 1 . Scrap Searched . | . . . Spaces Dug . | . . . Terrain Destroyed 5 | . 5 . Melee . | . . . Projectile . | . . . AOE 5 | . 5 . Actions | -11 -10 -9 --------- Run | Scr Mat Mat Total 520 | 61 294 165 Wait 42 | . 5 37 Move 385 | 47 234 104 Hop . | . . . Pick Up 22 | 8 12 2 Fast Attach 2 | 2 . . Attach 11 | 4 2 5 Detach . | . . . Swap 6 | . 6 . Drop 8 | . 6 2 Fire 44 | . 29 15 Melee . | . . . Ram . | . . . Kick . | . . . Crush . | . . . Escape Stasis . | . . . Rewire . | . . . Trap . | . . . Miscellaneous . | . . . Route ------- -11/Scrapyard -10/Materials (discovered 2 exits: *Mat / [*Min]) -9/Materials History --------- Turn | Location | Event 5 | -11/Scrapyard | Discovered new exit (range 16) 54 | -11/Scrapyard | Entered Materials 145 | -10/Materials | Discovered new exit (range 10) 315 | -10/Materials | Build established: Mutant 323 | -10/Materials | Discovered new exit (range 13) 388 | -10/Materials | Entered another Materials area 388 | -9/Materials | Evolved 2 slots: Weapon x2 587 | -9/Materials | Self-destructed Last Messages --------------- 00558_ K-01 Serf collects debris. 00566_ Triggered EMP Trap. 00566_ A bubble of electromagnetic force engulfs the area. 00566_ Repair Station disabled. 00569_ Triggered EMP Trap. 00569_ A bubble of electromagnetic force engulfs the area. 00569_ EMP Trap short circuited. 00569_ Electrolysis Chamber disabled. 00569_ A bubble of electromagnetic force engulfs the area. 00570_ Triggered EMP Trap. 00570_ A bubble of electromagnetic force engulfs the area. 00572_ K-01 Serf collects debris. 00574_ Triggered EMP Trap. 00574_ A bubble of electromagnetic force engulfs the area. 00574_ Assault Rifle destroyed. 00574_ Hadron Collector disabled. 00575_ K-01 Serf collects debris. 00579_ O-16 Technician: "IFF HANDSHAKE FAILED. SECURING TERMINAL." 00580_ ALERT: Hostiles spotted, dispatching reinforcements to Terminal M010. Map ----- +----------------------------------------------------+ | ??????????????????????????##### *!= ## " | | ??????????????????????????????# "" ## " | | ??????????????????????????????# "" ## | | ??????????????????????????????# "T ## | | ??????????????????????????????#% "" ## | | ?????????????????????????######/## "" ##### | | ?????????????????????????# [[# #?# | | ?????????????????????????## + #?# | | ??????????????????????????# # """ #?# | | ??????????????????????????# # """ #?# | | ??????????????????????????# #]] """ #?# | | ??????????????????????????# " #]] ??# | | ??????????????????????????# ^ #] ??????# | | ??????????????????????????# # ?????? | | ??????????????????????????# # ?????! | | ??????????????????????????# " # ]]] ???[ | | ??????????????????????????# " # ]] ??? | | ??????????????????????????# "" #??]] | | ??????????????????????????# #? """ | | ??????????????????????????####+### ???" | | ??????????????????????????# !???? | | ??????????????????????????# ????? | | ??????????????????????????# ????? | | ??????????????????????????# ########?????? | | ???????????????????########s## ##+#????????????? | | ???????????????????# @ # #???????????????? | | ???????????????????# ""T""o # #???????????????? | | ???????????????????# """"" ssY +???????????????? | | ???????????????????# #s #???????????????? | | ???????????????????########### #???????????????? | | ?????????????????????????????? #??????????????? | | ?????????????????????????????? ?????????????? | | ?????????????????????????????? ???????????? | | ?????????????????????????????? ? ??????????? | | ?????????????????????????????? ?#?##??????????? | | ???????????????????????????????+?????????????????? | | ?????????????????????????????????????????????????? | | ?????????????????????????????????????????????????? | | ?????????????????????????????????????????????????? | | ?????????????????????????????????????????????????? | | ?????????????????????????????????????????????????? | | ?????????????????????????????????????????????????? | | ?????????????????????????????????????????????????? | | ?????????????????????????????????????????????????? | | ?????????????????????????????????????????????????? | | ?????????????????????????????????????????????????? | | ?????????????????????????????????????????????????? | | ?????????????????????????????????????????????????? | | ?????????????????????????????????????????????????? | | ?????????????????????????????????????????????????? | +----------------------------------------------------+ Best States ------------- Heat Dissipation 38 Energy Generation 12 Energy Capacity 265 Matter Stores 300 Matter Capacity 300 Sight Range 16 Terrain Scan Density 10 Evasion (%) 50 Offensive Hacking 10 Item Schematics ----------------- None Robot Schematics ------------------ None Fabricated ------------ Nothing Alien Tech Used ----------------- None Achievements -------------- None Challenges ------------ None Game ------ Seed DataCannonWell Manual? 0 Play Time 00:12:35 Cumulative 8.0 hours Start 2019.11.15 @ 11:20:58 End 2019.11.15 @ 11:29:59 Sessions 1 Manual Loads 0 Difficulty Rogue Special Mode None Game No. 19 Rogue 19 Adventurer 0 Explorer 0 Win Type - Total 0 Types 0/0/0/0/0/0/0 Lore% 9 Gallery% 16 Achievement% 13 Wizard Run 0 Options --------- ASCII 0 Keyboard 0 Movement Mouse Keybinds 0 Fullscreen 1 Font 18/Terminus Map View 76x50 Tactical HUD 1 Map Filters NONE Filters NONE Steam 1 RUN: 5ce2352b-61e4-4b78-8c4d-8d1b2767f622